bitfinex-derivatives/quotes_BTCF0:USTF0_20250416
["timestamp","ask_amount","ask_price","bid_price","bid_amount"]
[1744821838987,0.45225066,84926.0,84925.0,0.1596603]
[1744821840592,0.45225066,84926.0,84925.0,0.01]
[1744821840886,0.45225066,84926.0,84925.0,0.1277603]
[1744821841284,0.45225066,84926.0,84925.0,0.1177603]
[1744821842393,0.45225066,84926.0,84925.0,0.1277603]
[1744821844095,0.48365066,84926.0,84925.0,0.1277603]
[1744821845893,0.51525066,84926.0,84925.0,0.1277603]
[1744821846296,0.51525066,84926.0,84925.0,0.1177603]
[1744821846690,0.54665066,84926.0,84925.0,0.1177603]
[1744821846894,0.176646,84924.0,84923.0,0.1177622]
[1744821847194,0.117763,84924.0,84923.0,0.1177622]
[1744821848292,0.1177673,84920.0,84919.0,0.1478672]
[1744821848595,0.1177673,84920.0,84919.0,0.1277672]
[1744821848794,0.1781673,84920.0,84919.0,0.01]
[1744821849187,0.1781673,84920.0,84919.0,0.1277686]
[1744821849388,0.1781673,84920.0,84919.0,0.01]
[1744821849789,0.1781673,84920.0,84919.0,0.1277686]
[1744821851290,0.1781673,84920.0,84919.0,0.1585686]
[1744821851796,0.1781673,84920.0,84919.0,0.0408]
[1744821851999,0.1781673,84920.0,84919.0,0.1585686]
[1744821852294,0.1781673,84920.0,84919.0,0.01]
[1744821853091,0.1781673,84920.0,84919.0,0.1277686]
[1744821853888,0.1781673,84920.0,84919.0,0.1585686]
[1744821854189,0.1781673,84920.0,84919.0,0.1485686]
[1744821854591,0.1480673,84920.0,84919.0,0.1585686]
[1744821854793,0.1177673,84920.0,84919.0,0.2191686]
[1744821854987,0.2073416,84925.0,84924.0,0.1177617]
[1744821855189,0.03257106,84926.0,84925.0,0.1177603]
[1744821855397,0.1177577,84927.0,84926.0,0.1177589]
[1744821855696,0.005,84930.0,84929.0,0.1177548]
[1744821855891,0.01392849,84930.0,84929.0,0.1277548]
[1744821856093,0.005,84930.0,84929.0,0.1277548]
[1744821856296,0.35841228,84939.0,84938.0,0.1177423]
[1744821856488,0.44981599,84939.0,84938.0,0.1277423]
[1744821857199,0.44981599,84939.0,84938.0,0.1923423]
[1744821857594,0.15027431,84939.0,84938.0,0.1923423]
[1744821858384,0.18037431,84939.0,84938.0,0.1923423]
[1744821859294,0.15027431,84939.0,84938.0,0.1923423]
[1744821863999,0.0588697,84940.0,84939.0,0.1177409]
[1744821864000,0.1177397,84940.0,84939.0,0.1177409]
[1744821864194,0.3608,84941.0,84940.0,0.1177395]
[1744821864503,0.3608,84941.0,84940.0,0.1922395]
[1744821864703,0.4785381,84941.0,84940.0,0.1922395]
[1744821865205,0.4785381,84941.0,84940.0,0.2235395]
[1744821865898,0.3608,84941.0,84940.0,0.2235395]
[1744821867204,0.4785381,84941.0,84940.0,0.2235395]
[1744821870597,0.4785381,84941.0,84940.0,0.1607395]
[1744821870801,0.5731381,84941.0,84940.0,0.1607395]
[1744821871609,0.5731381,84941.0,84940.0,0.1930395]
[1744821871803,0.5731381,84941.0,84940.0,0.01]
[1744821872016,0.1177451,84936.0,84935.0,0.0326]
[1744821872211,0.1766182,84936.0,84935.0,0.1277465]
[1744821872708,0.1766182,84936.0,84935.0,0.1600465]
[1744821873304,0.2078182,84936.0,84935.0,0.1600465]
[1744821873701,0.2078182,84936.0,84935.0,0.14900291]
[1744821874412,0.20686525,84936.0,84935.0,0.14900291]
[1744821874912,0.24006525,84936.0,84935.0,0.14900291]
[1744821875711,0.1232731,84936.0,84935.0,0.14900291]
[1744821877902,0.0900731,84936.0,84935.0,0.14900291]
[1744821878105,0.0588731,84936.0,84935.0,0.18100291]
[1744821879612,0.5110415,84940.0,84939.0,0.1177409]
[1744821879811,0.5110415,84940.0,84939.0,0.11669741]
[1744821880112,0.5110415,84940.0,84939.0,0.14879741]
[1744821880704,0.5110415,84940.0,84939.0,0.11669741]
[1744821881011,0.5427415,84940.0,84939.0,0.11669741]
[1744821881211,0.5427415,84940.0,84939.0,0.10669741]
[1744821882708,0.1177423,84938.0,84937.0,0.0588718]
[1744821882906,0.1766211,84935.0,84934.0,0.0588737]
[1744821883306,0.1766211,84935.0,84934.0,0.0688737]
[1744821883704,0.2401211,84935.0,84934.0,0.0688737]
[1744821887314,0.0635,84935.0,84934.0,0.0688737]
[1744821887613,0.4785398,84940.0,84939.0,0.1177409]
[1744821887821,0.4785398,84940.0,84939.0,0.1277409]
[1744821888011,0.4785398,84940.0,84939.0,0.1606409]
[1744821889306,0.5419398,84940.0,84939.0,0.1606409]
[1744821889906,0.5419398,84940.0,84939.0,0.1277409]
[1744821891014,0.5419398,84940.0,84939.0,0.1590409]
[1744821895111,0.5115398,84940.0,84939.0,0.2215409]
[1744821895320,0.3938,84940.0,84939.0,0.2215409]
[1744821895614,0.4785395,84940.0,84939.0,0.2215409]
[1744821897320,0.5117395,84940.0,84939.0,0.2215409]
[1744821900823,0.4785395,84940.0,84939.0,0.2215409]
[1744821901322,0.3608,84940.0,84939.0,0.2215409]
[1744821901624,0.02344503,84944.0,84943.0,0.1177354]
[1744821901923,0.117734,84944.0,84943.0,0.196603]
[1744821902131,0.117734,84944.0,84943.0,0.24896074]
[1744821903325,0.1177327,84945.0,84944.0,0.1765995]
[1744821903522,0.1177327,84945.0,84944.0,0.1965995]
[1744821903723,0.1177327,84945.0,84944.0,0.2594995]
[1744821904324,0.1177312,84946.0,84945.0,0.1177326]
[1744821904522,0.0303,84953.0,84947.0,0.0588648]
[1744821904724,0.53288009,84952.0,84951.0,0.1177243]
[1744821905129,0.53288009,84952.0,84951.0,0.2134243]
[1744821906026,0.42418457,84952.0,84951.0,0.2134243]
[1744821906321,0.3608,84972.0,84966.0,0.1177035]
[1744821906511,0.20982472,84967.0,84966.0,0.1277035]
[1744821906711,0.20982472,84967.0,84966.0,0.1925035]
[1744821906919,0.1765691,84960.0,84956.0,0.3608]
[1744821907223,0.1765691,84960.0,84959.0,0.1177123]
[1744821907424,0.1765691,84960.0,84959.0,0.1277123]
[1744821907620,0.1765691,84960.0,84959.0,0.1599123]
[1744821907828,0.1765691,84960.0,84959.0,0.1922123]
[1744821908023,0.0588559,84960.0,84959.0,0.1922123]
[1744821908427,0.0588549,84962.0,84961.0,0.1177104]
[1744821908630,0.0588549,84962.0,84961.0,0.1677104]
[1744821908823,0.0588549,84962.0,84961.0,0.2314104]
[1744821909129,0.4196549,84962.0,84961.0,0.1991104]
[1744821909330,0.1177132,84959.0,84958.0,0.00017654]
[1744821909724,0.1177132,84959.0,84958.0,0.11789074]
[1744821909926,0.1177132,84959.0,84958.0,0.00017654]
[1744821910327,0.1177132,84959.0,84958.0,0.11789114]
[1744821910829,0.1177132,84959.0,84958.0,0.03157654]
[1744821911334,0.1177132,84959.0,84958.0,0.14929114]
[1744821914541,0.1177132,84959.0,84958.0,0.03157654]
[1744821915044,0.1177132,84959.0,84958.0,0.14929114]
[1744821915339,0.1177132,84959.0,84958.0,0.14045755]
[1744821916142,0.4785132,84959.0,84958.0,0.14045755]
[1744821920143,0.4785132,84959.0,84958.0,0.20405755]
[1744821921047,0.5101132,84959.0,84958.0,0.20405755]
[1744821922338,0.5101132,84959.0,84958.0,0.21405755]
[1744821923257,0.5101132,84959.0,84958.0,0.18335755]
[1744821924148,0.5415132,84959.0,84958.0,0.15045755]
[1744821925042,0.1177215,84953.0,84952.0,0.0588609]
[1744821925247,0.1177215,84953.0,84952.0,0.2065824]
[1744821925542,0.1803215,84953.0,84952.0,0.2065824]
[1744821925747,0.2118215,84953.0,84952.0,0.2065824]
[1744821926433,0.2118215,84953.0,84952.0,0.1765824]
[1744821927034,0.1803215,84953.0,84952.0,0.1765824]
[1744821927340,0.1177215,84953.0,84952.0,0.20924889]
[1744821928048,0.1503215,84953.0,84952.0,0.20924889]
[1744821928239,0.1503215,84953.0,84952.0,0.19820701]
[1744821930347,0.1831215,84953.0,84952.0,0.19820701]
[1744821934149,0.1177229,84952.0,84951.0,0.02195793]
[1744821934454,0.1177243,84951.0,84950.0,0.00017654]
[1744821934646,0.1836243,84951.0,84950.0,0.00017654]
[1744821935154,0.1766252,84934.0,84933.0,0.1766125]
[1744821935345,0.1766252,84934.0,84933.0,0.2566125]
[1744821936056,0.0588746,84934.0,84933.0,0.3154862]
[1744821936245,0.0329,84937.0,84936.0,0.1177451]
[1744821936552,0.17678464,84942.0,84941.0,0.1177381]
[1744821938150,0.17678464,84942.0,84941.0,0.1907381]
[1744821938654,0.08026267,84942.0,84941.0,0.1907381]
[1744821939248,0.08026267,84942.0,84941.0,0.1611381]
[1744821939551,0.08026267,84942.0,84941.0,0.1961381]
[1744821939745,0.17746267,84942.0,84941.0,0.1861381]
[1744821940256,0.17746267,84942.0,84941.0,0.1537381]
[1744821941055,0.17746267,84942.0,84941.0,0.1861381]
[1744821941941,0.11156267,84942.0,84941.0,0.1861381]
[1744821942951,0.14396267,84942.0,84941.0,0.1861381]
[1744821943445,0.14396267,84942.0,84941.0,0.1961381]
[1744821945153,0.14396267,84942.0,84941.0,0.1861381]
[1744821946356,0.14396267,84942.0,84941.0,0.004]
[1744821946750,0.1177478,84934.0,84933.0,0.032]
[1744821946952,0.4785478,84934.0,84933.0,0.1277492]
[1744821947557,0.5435478,84934.0,84933.0,0.1277492]
[1744821947954,0.5435478,84934.0,84933.0,0.1617492]
[1744821948851,0.5435478,84934.0,84933.0,0.1197492]
[1744821949360,0.5435478,84934.0,84933.0,0.1227492]
[1744821949859,0.5435478,84934.0,84933.0,0.005]
[1744821950357,0.5435478,84934.0,84933.0,0.1227492]
[1744821951248,0.5435478,84934.0,84933.0,0.1207492]
[1744821952255,0.5435478,84934.0,84933.0,0.003]
[1744821952461,0.1766315,84930.0,84929.0,0.1177541]
[1744821952666,0.1177562,84928.0,84927.0,0.12282044]
[1744821952865,0.1177562,84928.0,84927.0,0.14282044]
[1744821953159,0.1834562,84928.0,84927.0,0.14282044]
[1744821953351,0.0657,84928.0,84907.0,0.17987175]
[1744821953547,0.1177784,84912.0,84911.0,0.05]
[1744821953748,0.0588885,84913.0,84907.0,0.17987175]
[1744821953749,0.0588912,84909.0,84908.0,0.1177839]
[1744821953956,0.0588912,84909.0,84908.0,0.1277839]
[1744821954159,0.1766751,84909.0,84908.0,0.1277839]
[1744821954562,0.1766751,84909.0,84908.0,0.01]
[1744821954753,0.1766855,84905.0,84904.0,0.1177883]
[1744821954952,0.19752867,84905.0,84904.0,0.1177883]
[1744821955153,0.26052867,84905.0,84904.0,0.1177883]
[1744821955552,0.14273787,84905.0,84904.0,0.1177883]
[1744821955954,0.1515934,84905.0,84904.0,0.1197883]
[1744821956765,0.00885553,84905.0,84904.0,0.1297883]
[1744821957072,0.11794805,84917.0,84916.0,0.1177728]
[1744821957259,0.11794805,84917.0,84916.0,0.1277728]
[1744821958265,0.1390262,84917.0,84916.0,0.1277728]
[1744821958665,0.1390262,84917.0,84916.0,0.1177728]
[1744821958867,0.1696262,84917.0,84916.0,0.1177728]
[1744821960665,0.17835852,84917.0,84916.0,0.1177728]
[1744821962265,0.20965852,84917.0,84916.0,0.1177728]
[1744821964167,0.1177867,84906.0,84905.0,0.4785879]
[1744821964367,0.1177922,84902.0,84901.0,0.12285689]
[1744821964769,0.1787922,84902.0,84901.0,0.13285689]
[1744821965472,0.1787922,84902.0,84901.0,0.12285689]
[1744821965773,0.1787922,84902.0,84901.0,0.12685689]
[1744821965963,0.1787922,84902.0,84901.0,0.15765689]
[1744821966462,0.1787922,84902.0,84901.0,0.12685689]
[1744821967364,0.1787922,84902.0,84901.0,0.15855689]
[1744821967671,0.1787922,84902.0,84901.0,0.16155689]
[1744821968271,0.1787922,84902.0,84901.0,0.20325689]
[1744821968477,0.0306,84902.0,84901.0,0.20325689]
[1744821968671,0.0588887,84913.0,84907.0,0.1177853]
[1744821968873,0.03,84907.0,84906.0,0.53748]
[1744821969070,0.4702845,84919.0,84910.0,0.0588905]
[1744821969369,0.03,84916.0,84915.0,0.1177742]
[1744821969563,0.03,84916.0,84915.0,0.1277742]
[1744821969763,0.08344,84924.0,84916.0,0.1177728]
[1744821969968,0.00017665,84917.0,84916.0,0.1377728]
[1744821970174,0.00017665,84917.0,84916.0,0.1477728]
[1744821970570,5e-08,84917.0,84916.0,0.3977728]
[1744821970772,0.031,84935.0,84934.0,0.1177478]
[1744821971072,0.16966129,84935.0,84934.0,0.1377478]
[1744821972471,0.16966129,84935.0,84934.0,0.1427478]
[1744821973671,0.03988396,84935.0,84934.0,0.1427478]
[1744821973872,0.00888396,84935.0,84934.0,0.1427478]
[1744821974168,0.1177465,84935.0,84934.0,0.2604942]
[1744821974770,0.1177465,84935.0,84934.0,0.1427464]
[1744821974966,0.12654565,84935.0,84934.0,0.0638732]
[1744821975166,0.12654565,84935.0,84934.0,0.0738732]
[1744821975366,0.15724565,84935.0,84934.0,0.0738732]
[1744821976678,0.15724565,84935.0,84934.0,0.015]
[1744821976870,0.18854565,84935.0,84934.0,0.005]
[1744821977269,0.21994565,84935.0,84934.0,0.005]
[1744821977570,0.1177576,84927.0,84926.0,0.00017665]
[1744821977771,0.1177576,84927.0,84926.0,0.11793555]
[1744821978367,0.1797576,84927.0,84926.0,0.11793555]
[1744821978969,0.1797576,84927.0,84926.0,0.11893555]
[1744821979169,0.1797576,84927.0,84926.0,0.12093555]
[1744821980579,0.1797576,84927.0,84926.0,0.13093555]
[1744821982372,0.062,84927.0,84926.0,0.13093555]
[1744821982572,0.00879915,84935.0,84934.0,0.1177478]
[1744821982769,0.058872,84937.0,84936.0,0.1766141]
[1744821983167,0.058872,84937.0,84936.0,0.1966141]
[1744821983372,0.058872,84937.0,84936.0,0.2554859]
[1744821984067,0.091072,84937.0,84936.0,0.2554859]
[1744821984673,0.091072,84937.0,84936.0,0.2854859]
[1744821984971,0.10000482,84937.0,84936.0,0.2854859]
[1744821985274,0.13250482,84937.0,84936.0,0.1677436]
[1744821985477,0.13250482,84937.0,84936.0,0.1377436]
[1744821985675,0.49330482,84937.0,84936.0,0.02]
[1744821985878,1.09383282,84937.0,84907.0,0.3608]
[1744821986175,0.1177801,84914.0,84913.0,0.0588864]
[1744821986365,0.1177801,84914.0,84913.0,0.0688864]
[1744821986569,0.1177801,84914.0,84913.0,0.0588864]
[1744821986770,0.1766688,84914.0,84913.0,0.0688864]
[1744821989773,0.1766688,84914.0,84913.0,0.01]
[1744821989969,0.1177784,84912.0,84911.0,0.1177789]
[1744821990585,0.1793784,84912.0,84911.0,0.1177789]
[1744821991583,0.0309,84912.0,84911.0,0.1803789]
[1744821991777,0.1486784,84912.0,84911.0,0.1803789]
[1744821991977,0.1486784,84912.0,84911.0,0.1903789]
[1744821992472,0.1486784,84912.0,84911.0,0.01]
[1744821992672,0.1793784,84912.0,84911.0,0.01]
[1744821992877,0.1793784,84912.0,84911.0,0.1277797]
[1744821993580,0.1793784,84912.0,84909.0,0.0588912]
[1744821993581,0.1177867,84906.0,84905.0,0.11796475]
[1744821993978,0.0304,84906.0,84905.0,0.11796475]
[1744821994174,0.0304,84906.0,84905.0,0.19186475]
[1744821994374,0.0588862,84917.0,84905.0,0.19186475]
[1744821994375,0.1177853,84907.0,84906.0,0.1177867]
[1744821994573,0.1177853,84907.0,84906.0,0.1916867]
[1744821995276,0.1177853,84907.0,84906.0,0.1277867]
[1744821995471,0.1815853,84907.0,84906.0,0.1277867]
[1744821995880,0.2009448,84907.0,84906.0,0.1277867]
[1744821996183,0.2009448,84907.0,84906.0,0.1903867]
[1744821996780,0.0831595,84907.0,84906.0,0.1933867]
[1744821996980,0.1686448,84907.0,84906.0,0.1933867]
[1744821999775,0.2015448,84907.0,84906.0,0.1307867]
[1744822000286,0.1686448,84907.0,84906.0,0.1947867]
[1744822002985,0.2018448,84907.0,84906.0,0.1947867]
[1744822004278,0.2018448,84907.0,84906.0,0.1847867]
[1744822006079,0.0193595,84907.0,84906.0,0.1847867]
[1744822006285,0.0303,84921.0,84917.0,0.1177714]
[1744822006584,0.1177691,84919.0,84917.0,0.1177714]
[1744822006783,0.38034904,84918.0,84917.0,0.1277714]
[1744822006983,0.0303,84918.0,84917.0,0.1277714]
[1744822007180,0.00017665,84922.0,84921.0,0.1177659]
[1744822007384,0.01952009,84930.0,84929.0,0.1177548]
[1744822007586,0.1177498,84933.0,84932.0,0.1177506]
[1744822007782,0.1177498,84933.0,84932.0,0.1277506]
[1744822008289,0.13698809,84933.0,84932.0,0.1277506]
[1744822008689,0.16728809,84933.0,84932.0,0.1277506]
[1744822009489,0.16728809,84933.0,84932.0,0.1297506]
[1744822009788,0.16728809,84933.0,84932.0,0.1327506]
[1744822010188,0.16728809,84933.0,84932.0,0.1307506]
[1744822010385,0.16728809,84933.0,84932.0,0.1327506]
[1744822012494,0.04953829,84933.0,84932.0,0.1327506]
[1744822012681,0.01923829,84933.0,84932.0,0.1327506]
[1744822012886,0.1177464,84936.0,84935.0,0.1177465]
[1744822013085,0.1177464,84936.0,84935.0,0.1277465]
[1744822013589,0.1177464,84936.0,84935.0,0.1914465]
[1744822013985,0.1488464,84936.0,84935.0,0.1914465]
[1744822014185,0.1488464,84936.0,84935.0,0.1924465]
[1744822014387,0.0311,84936.0,84935.0,0.1924465]
[1744822014583,0.00017665,84941.0,84940.0,0.1177395]
[1744822014903,0.00017665,84941.0,84940.0,0.1277395]
[1744822015192,0.00017665,84941.0,84940.0,0.1922395]
[1744822016094,0.01970244,84941.0,84940.0,0.1922395]
[1744822016494,0.01970244,84941.0,84940.0,0.1932395]
[1744822016696,0.01970244,84941.0,84940.0,0.1942395]
[1744822016887,0.00017665,84941.0,84940.0,0.1942395]
[1744822018197,0.00017665,84941.0,84940.0,0.2542395]
[1744822018399,0.1227174,84956.0,84955.0,0.1177187]
[1744822018693,0.14243612,84956.0,84955.0,0.10667729]
[1744822019484,0.17613612,84956.0,84955.0,0.13797729]
[1744822021893,0.20853612,84956.0,84955.0,0.13797729]
[1744822022298,0.21740318,84956.0,84955.0,0.13797729]
[1744822023600,0.21740318,84956.0,84955.0,0.10667729]
[1744822023898,0.1177201,84954.0,84953.0,0.1765801]
[1744822024499,0.1806201,84954.0,84953.0,0.1765801]
[1744822024891,0.0327,84954.0,84953.0,0.1765801]
[1744822025087,0.0327,84954.0,84953.0,0.1865801]
[1744822025292,0.0357,84954.0,84953.0,0.1865801]
[1744822025488,0.1534201,84954.0,84953.0,0.01]
[1744822025694,0.0588635,84949.0,84947.0,0.05904135]
[1744822026002,0.0629,84948.0,84947.0,0.08904135]
[1744822026302,0.1806284,84948.0,84947.0,0.26563445]
[1744822027698,0.0327,84948.0,84947.0,0.26563445]
[1744822028002,0.0327,84948.0,84947.0,0.35673445]
[1744822028600,0.0337,84948.0,84947.0,0.35673445]
[1744822028810,0.1514284,84948.0,84947.0,0.35673445]
[1744822029301,0.0337,84948.0,84947.0,0.35673445]
[1744822029892,0.1514284,84948.0,84947.0,0.35673445]
[1744822030088,0.1836284,84948.0,84947.0,0.35673445]
[1744822030494,0.0337,84948.0,84947.0,0.32593445]
[1744822030694,0.0337,84948.0,84947.0,0.35723445]
[1744822030895,0.1514284,84948.0,84947.0,0.32593445]
[1744822031096,0.1514284,84948.0,84947.0,0.26563445]
[1744822031291,0.1836284,84948.0,84947.0,0.26563445]
[1744822032095,0.23551,84932.0,84931.0,0.0588759]
[1744822032298,0.1766315,84931.0,84930.0,0.0588766]
[1744822032491,0.2069315,84931.0,84930.0,0.0588766]
[1744822033003,0.2069315,84931.0,84930.0,0.18663]
[1744822033196,0.0303,84931.0,84930.0,0.18663]
[1744822033900,0.0303,84931.0,84930.0,0.21683]
[1744822034501,0.0303,84931.0,84930.0,0.21883]
[1744822034699,0.0303,84931.0,84930.0,0.22283]
[1744822036397,0.148052,84931.0,84930.0,0.19263]
[1744822036898,0.23159789,84931.0,84930.0,0.19263]
[1744822037494,0.0303,84931.0,84930.0,0.19263]
[1744822038108,0.0303,84931.0,84930.0,0.25853]
[1744822039406,0.148052,84931.0,84930.0,0.25853]
[1744822039904,0.148052,84931.0,84930.0,0.19263]
[1744822040593,0.178552,84931.0,84930.0,0.19263]
[1744822040902,0.178552,84931.0,84930.0,0.22293]
[1744822043003,0.178552,84931.0,84930.0,0.19263]
[1744822045503,0.178552,84931.0,84930.0,0.006]
[1744822045803,0.178552,84931.0,84930.0,0.1237534]
[1744822047602,0.178552,84931.0,84930.0,0.1197534]
[1744822047907,0.1177631,84924.0,84923.0,0.1177621]
[1744822048104,0.1177631,84924.0,84923.0,0.1477621]
[1744822048303,0.1826631,84924.0,84923.0,0.1477621]
[1744822049207,0.1826631,84924.0,84923.0,0.1527621]
[1744822049919,0.1826631,84924.0,84923.0,0.1227621]
[1744822050108,0.1826631,84924.0,84923.0,0.1257621]
[1744822050304,0.1826631,84924.0,84922.0,0.00017665]
[1744822050305,0.1177631,84923.0,84922.0,0.00017665]
[1744822050811,0.1822631,84923.0,84922.0,0.00017665]
[1744822051809,0.1832631,84923.0,84922.0,0.00017665]
[1744822052010,0.1177728,84916.0,84915.0,0.0588868]
[1744822052206,0.4785728,84916.0,84915.0,0.0588868]
[1744822052410,0.5757728,84916.0,84915.0,0.0588868]
[1744822053209,0.033,84916.0,84915.0,0.1199868]
[1744822053411,0.0608821,84923.0,84922.0,0.1177645]
[1744822053412,0.002,84923.0,84922.0,0.1177645]
[1744822053715,1e-07,84923.0,84922.0,0.6185645]
[1744822053907,1e-07,84923.0,84922.0,0.9411645]
[1744822054108,0.00017665,84939.0,84938.0,0.1177423]
[1744822054312,0.00017665,84939.0,84938.0,0.2229423]
[1744822054612,0.15091755,84939.0,84938.0,0.2229423]
[1744822054811,0.15091755,84939.0,84938.0,1.7229423]
[1744822055414,0.15191755,84939.0,84938.0,0.2229423]
[1744822056412,0.15191755,84939.0,84938.0,0.1277423]
[1744822056624,0.18261755,84939.0,84938.0,0.1277423]
[1744822056818,0.21331755,84939.0,84938.0,0.1277423]
[1744822058317,0.21331755,84939.0,84938.0,0.1591423]
[1744822058824,0.21331755,84939.0,84938.0,0.1923423]
[1744822063028,0.09557665,84939.0,84938.0,0.1923423]
[1744822063230,0.06487665,84939.0,84938.0,0.1923423]
[1744822063423,0.18261755,84939.0,84938.0,0.1923423]
[1744822063723,0.06487665,84939.0,84938.0,0.1923423]
[1744822064118,0.18261755,84939.0,84938.0,0.1923423]
[1744822064818,0.06487665,84939.0,84938.0,0.1923423]
[1744822065016,0.03417665,84939.0,84938.0,0.1923423]
[1744822065218,0.03417665,84939.0,84938.0,0.2236423]
[1744822066230,0.00117665,84939.0,84938.0,0.2236423]
[1744822066620,0.00117665,84939.0,84938.0,0.2336423]
[1744822067122,0.15021755,84939.0,84938.0,0.1277423]
[1744822067719,0.18201755,84939.0,84938.0,0.1277423]
[1744822070431,0.18201755,84939.0,84938.0,0.1592423]
[1744822070734,0.18201755,84939.0,84938.0,0.1911423]
[1744822070937,0.18201755,84939.0,84938.0,0.2230423]
[1744822071526,0.15021755,84939.0,84938.0,0.2230423]
[1744822071731,0.03247665,84939.0,84938.0,0.2230423]
[1744822071936,0.00117665,84939.0,84938.0,0.2230423]
[1744822072233,0.11891755,84939.0,84938.0,0.2330423]
[1744822072623,0.15201755,84939.0,84938.0,0.1377423]
[1744822072823,0.18311755,84939.0,84938.0,0.1377423]
[1744822073033,0.18311755,84939.0,84938.0,0.2019423]
[1744822075128,0.03427665,84939.0,84938.0,0.2019423]
[1744822077735,0.15201755,84939.0,84938.0,0.2019423]
[1744822078433,0.15201755,84939.0,84938.0,0.1919423]
[1744822078635,0.03427665,84939.0,84938.0,0.1919423]
[1744822080338,0.00117665,84939.0,84938.0,0.1919423]
[1744822081932,0.03427665,84939.0,84938.0,0.1919423]
[1744822082132,0.03427665,84939.0,84938.0,0.2019423]
[1744822083336,0.00117665,84939.0,84938.0,0.2019423]
[1744822083533,0.00117665,84939.0,84938.0,0.5627423]
[1744822084234,0.00117665,84939.0,84938.0,0.2019423]
[1744822084443,0.11891755,84939.0,84938.0,0.1377423]
[1744822084630,0.11891755,84939.0,84938.0,1.6277423]
[1744822084830,0.06427665,84939.0,84938.0,1.6277423]
[1744822085030,0.06427665,84939.0,84938.0,1.6579423]
[1744822085230,0.06427665,84939.0,84938.0,0.1579423]
[1744822085432,0.06427665,84939.0,84938.0,0.1903423]
[1744822086430,0.18201755,84939.0,84938.0,0.1903423]
[1744822087838,0.14951755,84939.0,84938.0,0.1903423]
[1744822088140,0.14951755,84939.0,84938.0,0.2003423]
[1744822088335,0.03177665,84939.0,84938.0,0.2003423]
[1744822090432,0.00117665,84939.0,84938.0,0.2003423]
[1744822094533,0.11891755,84939.0,84938.0,0.2003423]
[1744822094735,0.11891755,84939.0,84938.0,0.1277423]
[1744822094932,0.18311755,84939.0,84938.0,0.1277423]
[1744822095443,0.18311755,84939.0,84938.0,0.1930423]
[1744822095942,0.06537665,84939.0,84938.0,0.1930423]
[1744822096144,0.06537665,84939.0,84938.0,0.18199957]
[1744822096334,0.18311755,84939.0,84938.0,0.18199957]
[1744822097450,0.06537665,84939.0,84938.0,0.18199957]
[1744822099035,0.18311755,84939.0,84938.0,0.18199957]
[1744822100650,0.18311755,84939.0,84938.0,0.14939957]
[1744822100949,0.18311755,84939.0,84938.0,0.11669957]
[1744822107252,0.18311755,84939.0,84938.0,0.10565684]
[1744822109040,0.18311755,84939.0,84938.0,0.11565684]
[1744822109547,0.18311755,84939.0,84938.0,0.14665684]
[1744822112346,0.18311755,84939.0,84938.0,0.13665684]
[1744822112553,0.18311755,84939.0,84938.0,0.10565684]
[1744822113043,0.18311755,84939.0,84938.0,0.13825684]
[1744822113244,0.18311755,84939.0,84938.0,0.12721387]
[1744822113655,0.18311755,84939.0,84938.0,0.1183795]
[1744822115351,0.18311755,84939.0,84938.0,0.1283795]
[1744822116146,0.18311755,84939.0,84938.0,0.1583795]
[1744822117456,0.03417665,84939.0,84938.0,0.1583795]
[1744822117952,0.00117665,84939.0,84938.0,0.1583795]
[1744822118158,0.2090837,84954.0,84953.0,0.1177215]
[1744822118458,0.0913603,84954.0,84953.0,0.1377215]
[1744822118859,0.0313,84954.0,84953.0,0.1377215]
[1744822119250,0.0313,84954.0,84953.0,0.1699215]
[1744822119553,0.0333,84954.0,84953.0,0.1699215]
[1744822120059,0.0373,84954.0,84953.0,0.1699215]
[1744822121546,0.0588544,84963.0,84953.0,0.1699215]
[1744822121547,0.0588418,84981.0,84953.0,0.1222]
[1744822121858,0.0301,84978.0,84977.0,0.1176883]
[1744822122054,0.0301,84978.0,84977.0,1.6576883]
[1744822122260,0.0328,84981.0,84980.0,0.1176841]
[1744822122460,0.005,84982.0,84981.0,0.1176827]
[1744822122660,0.005,84982.0,84981.0,0.1676827]
[1744822122961,0.005,84982.0,84981.0,0.1776827]
[1744822123359,0.00017558,84990.0,84989.0,0.1176716]
[1744822123557,0.00017558,84990.0,84989.0,0.1376716]
[1744822123763,0.01799527,84990.0,84989.0,0.1376716]
[1744822123952,0.05079527,84990.0,84989.0,0.1376716]
[1744822124147,0.16846557,84990.0,84989.0,0.1376716]
[1744822124355,0.17749982,84990.0,84989.0,0.1376716]
[1744822124863,0.18149982,84990.0,84989.0,0.1376716]
[1744822125355,0.18249982,84990.0,84989.0,0.1376716]
[1744822125558,0.21379982,84990.0,84989.0,0.1376716]
[1744822129162,0.18249982,84990.0,84989.0,0.1376716]
[1744822129661,0.06482952,84990.0,84989.0,0.1376716]
[1744822129963,0.18249982,84990.0,84989.0,0.1681716]
[1744822130162,0.21499982,84990.0,84989.0,0.1681716]
[1744822130361,0.07950983,84990.0,84989.0,0.1681716]
[1744822130751,0.19718013,84990.0,84989.0,0.1681716]
[1744822131259,0.18814588,84990.0,84989.0,0.1681716]
[1744822131453,0.18814588,84990.0,84989.0,0.2000716]
[1744822132157,0.07047558,84990.0,84989.0,0.2000716]
[1744822132362,0.18814588,84990.0,84989.0,0.2000716]
[1744822134168,0.18814588,84990.0,84989.0,0.1695716]
[1744822138164,0.18814588,84990.0,84989.0,0.2012716]
[1744822138466,0.07047558,84990.0,84989.0,0.2012716]
[1744822138664,0.03767558,84990.0,84989.0,0.2012716]
[1744822139054,0.15534588,84990.0,84989.0,0.2012716]
[1744822139458,0.18764588,84990.0,84989.0,0.2012716]
[1744822140965,0.18764588,84990.0,84989.0,0.1695716]
[1744822141166,0.18764588,84990.0,84989.0,0.1376716]
[1744822141563,0.18764588,84990.0,84989.0,0.1708716]
[1744822142760,0.18764588,84990.0,84989.0,0.2030716]
[1744822143362,0.06997558,84990.0,84989.0,0.2030716]
[1744822143872,0.03767558,84990.0,84989.0,0.2030716]
[1744822146974,0.00517558,84990.0,84989.0,0.2030716]
[1744822147974,0.00517558,84990.0,84989.0,0.19203534]
[1744822148972,0.03667558,84990.0,84989.0,0.19203534]
[1744822150671,0.00517558,84990.0,84989.0,0.19203534]
[1744822150873,0.058818,85015.0,85007.0,0.1176467]
[1744822151070,0.13542739,85011.0,85007.0,0.1276467]
[1744822151269,0.117643,85010.0,85007.0,0.2233467]
[1744822151571,0.04072557,85013.0,85012.0,0.1176398]
[1744822151774,0.26955166,85021.0,85020.0,0.1176287]
[1744822151972,0.28765378,85021.0,85020.0,0.1176287]
[1744822152272,0.26955166,85021.0,85020.0,0.1276287]
[1744822152666,0.26955166,85021.0,85020.0,0.1905287]
[1744822153470,0.27155166,85021.0,85020.0,0.1905287]
[1744822153874,0.75097906,85021.0,85020.0,0.0315]
[1744822154183,0.1176343,85018.0,85017.0,0.058816]
[1744822154475,0.1176343,85017.0,85016.0,0.1176339]